Cogmind - Beta 11.1 @@@ ROGUE MODE // 2022.06.01 @ 19:40:04 Player: Savant Result: Destroyed by G-73 Enforcer with Phase Gun Performance ------------- Evolutions (6) 3000 Regions Visited (19) 3800 Robots Destroyed (156) 780 Value Destroyed (4846) 4846 Prototype IDs (51) 1020 Alien Tech Used (0) 0 Bonus (1853) 1853 TOTAL SCORE: 15299 Bonus ------- High Alert Combat Kills 365 Follower Combat Kills 692 Met Imprinter 300 MAIN.C Attacked Warlord 500 Friendly Fire -4 Cogmind --------- Core Integrity 0/1150 Matter 92/300 Energy 595/600 System Corruption 4% Temperature Warm (189) Movement Hovering (44) Location -4/Factory Parts ------- > --- POWER (2) -------- Improved Fusion Compressor > --- PROPULSION (6) --- Combat Linear Gravjet Combat Linear Gravjet Combat Linear Gravjet Combat Linear Gravjet Combat Linear Gravjet > --- UTILITY (9) ------ Advanced Coolant Injector High-capacity Storage Unit Advanced Energy Well Advanced Gravity Neutralizer Advanced Reaction Control System Hardened Medium Armor Plating Hardened Medium Armor Plating Experimental Hacking Suite Experimental Hacking Suite > --- WEAPON (2) ------- Plasma Lance Plasma Lance > --- INVENTORY (20) --- Centrium Wheel Large Storage Unit Long-range Sensor Array Experimental Sensor Array Advanced Melee Analysis Suite Improved Cloaking Device Hardened Medium Armor Plating Improved Thermal Defense Suite Advanced Shield Generator Improved System Restoration Module Enhanced Nova Cannon Mini Grenade Launcher Dirty Datajack (14) Nanosword Nanosword CR-A16's Behemoth Slayer Peak State ------------ > --- POWER ------------ Light Antimatter Reactor Light Quantum Reactor > --- PROPULSION ------- Improved Linear Gravjet Combat Linear Gravjet Combat Linear Gravjet Combat Linear Gravjet Combat Linear Gravjet Combat Linear Gravjet > --- UTILITY ---------- Improved Cooling System High-capacity Storage Unit Advanced Gravity Neutralizer Experimental Sensor Array Advanced Signal Interpreter Layered Light Armor Plating Experimental Hacking Suite Experimental Hacking Suite Advanced System Shield > --- WEAPON ----------- Enhanced Nova Cannon Plasma Lance > --- INVENTORY -------- Centrium Wheel Combat Linear Gravjet Combat Linear Gravjet Advanced Coolant Injector Large Storage Unit Advanced Energy Well Long-range Sensor Array Advanced Melee Analysis Suite Advanced Reaction Control System Improved Cloaking Device Hardened Medium Armor Plating Advanced Shield Generator Experimental Hacking Suite Improved System Restoration Module Mini Grenade Launcher Dirty Datajack Nanosword Nanosword Plasma Lance CR-A16's Behemoth Slayer [Rating: 151] Favorites ----------- Power Micro Fission Core Engine Light Ion Engine Power Core Micro Fission Core Reactor Light Quantum Reactor Propulsion Armored Wheel Treads Light Treads Leg Aluminum Leg Wheel Armored Wheel Hover Unit Combat Linear Gravjet Flight Unit Impulse Thruster Array Utility High-capacity Storage Unit Device Experimental Sensor Array Storage High-capacity Storage Unit Processor Advanced Signal Interpreter Hackware Hacking Suite Protection Layered Light Armor Plating Weapon Greatsword Energy Gun Particle Gun Energy Cannon Particle Cannon Ballistic Gun Enhanced Autogun Ballistic Cannon Bore Cannon Launcher Mini Grenade Launcher Special Weapon Plasma Cutter Impact Weapon Maul Slashing Weapon Greatsword Piercing Weapon Plasma Lance Special Melee Weapon Datajack Build | -11 -10 -10 -10 -9 -8 -7 -7 -7 -7 -6 -6 -5 -5 -5 -5 -4 -4 -4 -4 ------- Run | Scr Mat Min Exi Min Mat Fac Low Low Zio Pro Fac Fac Upp Upp War Pro Fac Was Fac Slots Evolved 12 | . . . . . 4 2 . . . . 2 2 . . . . 2 . . Power 1 | . . . . . . . . . . . . 1 . . . . . . . Propulsion 4 | . . . . . 2 . . . . . 1 . . . . . 1 . . Utility 7 | . . . . . 2 2 . . . . 1 1 . . . . 1 . . Weapon . | . . . . . . . . . . . . . . . . . . . . Parts Attached 359 | 7 12 13 3 3 83 17 . 4 3 10 35 49 3 . 1 6 74 2 34 Power 24 | 1 . 1 . . 5 1 . . . 1 . 6 . . . . 7 . 2 Engine 6 | 1 . 1 . . 2 . . . . . . 2 . . . . . . . Core 15 | . . . . . 3 1 . . . 1 . 4 . . . . 4 . 2 Reactor 3 | . . . . . . . . . . . . . . . . . 3 . . Propulsion 67 | 3 . 2 . 1 26 2 . . . 1 9 4 . . . . 8 . 11 Treads 4 | 1 . 1 . 1 1 . . . . . . . . . . . . . . Leg 14 | . . . . . 14 . . . . . . . . . . . . . . Wheel 17 | 2 . 1 . . 11 2 . . . 1 . . . . . . . . . Hover 16 | . . . . . . . . . . . . . . . . . 5 . 11 Flight 16 | . . . . . . . . . . . 9 4 . . . . 3 . . Utility 167 | 1 3 1 1 . 16 10 . 2 3 4 24 30 3 . 1 4 46 1 17 Device 81 | . 1 1 . . 6 6 . 1 2 2 13 12 3 . . 2 25 1 6 Storage 12 | 1 2 . 1 . 1 . . . . . 1 . . . . . 5 . 1 Processor 5 | . . . . . 2 2 . . . . . 1 . . . . . . . Hackware 31 | . . . . . 2 2 . . 1 . 4 9 . . . . 6 . 7 Protection 38 | . . . . . 5 . . 1 . 2 6 8 . . 1 2 10 . 3 Artifact . | . . . . . . . . . . . . . . . . . . . . Weapon 101 | 2 9 9 2 2 36 4 . 2 . 4 2 9 . . . 2 13 1 4 Energy Gun 4 | . 2 . . . 1 1 . . . . . . . . . . . . . Energy Cannon 8 | . . 1 . . 3 1 . . . . . . . . . . 2 1 . Ballistic Gun 15 | 2 2 . . . 10 1 . . . . . . . . . . . . . Ballistic Cannon 13 | . 4 5 1 1 2 . . . . . . . . . . . . . . Launcher 13 | . . 3 . 1 . . . 1 . 1 . 3 . . . 1 1 . 2 Special Weapon 3 | . . . . . 2 . . . . . . . . . . . 1 . . Impact Weapon 3 | . 1 . . . 2 . . . . . . . . . . . . . . Slashing Weapon 31 | . . . . . 16 1 . 1 . 2 2 6 . . . 1 2 . . Piercing Weapon 9 | . . . . . . . . . . 1 . . . . . . 6 . 2 Special Melee Weapon 2 | . . . 1 . . . . . . . . . . . . . 1 . . Unidentified Prototypes 11 | . . . . . 4 1 . . . . . 1 . . 1 . 3 . 1 Parts Lost 47 | . . 2 . . 12 . . . . . 1 7 . . . . 15 . 10 Power 10 | . . 1 . . . . . . . . . 2 . . . . 4 . 3 Propulsion 18 | . . 1 . . 10 . . . . . 1 1 . . . . 4 . 1 Utility 15 | . . . . . 1 . . . . . . 3 . . . . 5 . 6 Weapon 4 | . . . . . 1 . . . . . . 1 . . . . 2 . . Highest Loss Streak 9 | . . 1 . . 2 . . . . . 1 3 . . . . 4 . 9 To Critical Strikes . | . . . . . . . . . . . . . . . . . . . . Average Slot Usage (%) 89 | . 98 100 100 100 95 86 84 83 83 83 92 85 87 88 88 88 81 94 93 Engine 2 | . 14 14 14 14 1 . . . . . . 2 . . . . . . . Core 6 | . . . . . 7 7 7 7 7 7 6 7 11 11 11 11 7 . . Treads 2 | . 14 14 14 14 2 . . . . . . . . . . . . . . Leg 4 | . . . . . 22 . . . . . . . . . . . . . . Wheel 8 | . 14 13 14 14 6 23 23 23 23 23 . . . . . . . . . Hover 1 | . . . . . . . . . . . . . . . . . 3 26 27 Flight 7 | . . . . . . . . . . . 32 16 17 17 17 17 12 . . Device 10 | . 13 14 14 14 9 8 7 6 6 6 11 10 10 11 11 9 9 21 15 Storage 7 | . 14 14 14 14 9 7 7 7 7 7 6 5 5 5 5 5 5 5 5 Processor 6 | . . . . . 6 11 15 15 15 15 6 5 5 5 5 5 5 5 3 Hackware 13 | . . . . . 5 15 15 15 15 15 19 22 17 17 17 17 22 10 12 Protection 2 | . . . . . 5 . . . . . . . 5 5 5 6 2 5 5 Energy Cannon 1 | . . 13 14 14 1 . . . . . . . . . . . . 3 4 Ballistic Gun 1 | . 11 . . . 4 . . . . . . . . . . . . . . Ballistic Cannon 1 | . 5 13 3 13 1 . . . . . . . . . . . . . . Slashing Weapon 6 | . . . . . 9 7 7 6 7 6 5 9 11 11 11 10 4 . . Naked Turns . | . . . . . . . . . . . . . . . . . . . . Heaviest Build 98 | 13 51 59 57 57 66 58 51 51 51 59 35 40 41 41 41 41 80 91 98 Greatest Support 111 | 16 20 16 16 16 52 52 52 52 52 52 39 46 46 46 46 46 92 92 111 Greatest Overweight (x) 5 | 1 5 3 3 3 5 1 . . . 1 2 1 . . . . 1 . . Average Overweight (x) . | . 2 3 3 3 1 . . . . . . . . . . . . . . Largest Inventory Capacity 20 | 8 20 20 20 20 20 20 20 20 20 20 20 15 15 15 15 15 20 20 20 Average Capacity 18 | 6 13 20 20 20 20 20 20 20 20 20 15 15 15 15 15 15 17 20 20 Most Carried 20 | 6 15 20 20 20 20 20 20 20 20 20 19 15 14 15 15 15 20 20 20 Average Carried 17 | 3 8 17 19 19 19 19 19 19 19 19 14 13 13 14 14 15 15 19 19 Final Capacity 20 | 8 20 20 20 20 20 20 20 20 20 20 15 15 15 15 15 15 20 20 20 Final Carried 20 | 6 15 20 20 20 20 20 20 20 20 20 15 14 13 15 15 15 17 20 16 Class Distribution -------------------- 32% | Hacker-Mutant 19% | Hacker-Assassin 16% | Mutant 10% | Scavenger-Mutant 9% | Hacker-Sprinter 9% | Wizard-Mutant Dominant Class ---------------- Mutant | -10/Materials Mutant | -10/Mines Mutant | -10/Exiles Mutant | -9/Mines Scavenger-Mutant | -8/Materials Hacker-Mutant | -7/Factory Hacker-Assassin | -7/Lower Caves Hacker-Assassin | -7/Lower Caves Hacker-Assassin | -7/Zion Hacker-Assassin | -6/Proximity Caves Hacker-Sprinter | -6/Factory Hacker-Sprinter | -5/Factory Hacker-Mutant | -5/Upper Caves Hacker-Mutant | -5/Upper Caves Hacker-Mutant | -5/Warlord Hacker-Mutant | -4/Proximity Caves Wizard-Mutant | -4/Factory Hacker-Mutant | -4/Waste Hacker-Mutant | -4/Factory Resources | -11 -10 -10 -10 -9 -8 -7 -7 -7 -7 -6 -6 -5 -5 -5 -5 -4 -4 -4 -4 ----------- Run | Scr Mat Min Exi Min Mat Fac Low Low Zio Pro Fac Fac Upp Upp War Pro Fac Was Fac Matter Collected 4937 | 158 369 462 97 42 1356 74 128 70 30 110 219 574 165 . . 130 722 20 211 Remotely . | . . . . . . . . . . . . . . . . . . . . Salvage Created 5712 | . 385 215 . 27 2038 101 54 30 . 207 416 737 60 38 . 37 735 251 381 Parts 327 | . 26 29 . 3 100 6 3 6 . 14 21 36 4 1 . 6 40 . 32 Haulers Intercepted 7 | . 1 . . . 5 . . . . . . 1 . . . . . . . Recyclers Shooed . | . . . . . . . . . . . . . . . . . . . . Parts Field Recycled . | . . . . . . . . . . . . . . . . . . . . Retrieved Matter . | . . . . . . . . . . . . . . . . . . . . Parts Self-Destructed 41 | . . . . . . . 13 5 . 12 . . 4 6 . 1 . . . Prevented . | . . . . . . . . . . . . . . . . . . . . Kills | -11 -10 -10 -10 -9 -8 -7 -7 -7 -7 -6 -6 -5 -5 -5 -5 -4 -4 -4 -4 ------- Run | Scr Mat Min Exi Min Mat Fac Low Low Zio Pro Fac Fac Upp Upp War Pro Fac Was Fac Combat Hostiles Destroyed 110 | . 13 14 . 2 29 1 . 3 . 4 4 8 1 . . 4 13 1 13 Melee 32 | . . . . . 12 1 . . . 3 4 1 1 . . . 8 . 2 Guns 22 | . 9 1 . . 12 . . . . . . . . . . . . . . Cannons 13 | . 4 4 . . 5 . . . . . . . . . . . . . . AOE 42 | . . 9 . 2 . . . 3 . 1 . 7 . . . 4 5 . 11 Classes Destroyed 18 | . 5 2 . 1 5 . 1 . . 2 . 1 . . . . . 1 . Worker 7 | . . 1 . . 2 1 . . . . . 2 . . . . 1 . . Builder 3 | . . 1 . . 1 . . . . . . 1 . . . . . . . Tunneler 1 | . . . . 1 . . . . . . . . . . . . . . . Hauler 7 | . 1 . . . 5 . . . . . . 1 . . . . . . . Recycler 7 | . . . . . 2 . . . . . 1 3 . . . . . . 1 Minesweeper 3 | . . . . . . . 2 . . . . . . 1 . . . . . Operator 3 | . 1 . . . 2 . . . . . . . . . . . . . . Watcher 15 | . 1 . . . 3 1 . . . . 2 3 . . . . 4 . 1 Swarmer 48 | . 6 12 . 2 . . . 3 . 1 . 5 . . . 4 5 . 10 Cutter 5 | . . . . . . . . . . . . 2 . . . . 1 . 2 Grunt 32 | . 7 2 . . 17 1 . . . . 1 . . . . . 4 . . Brawler 1 | . . . . . 1 . . . . . . . . . . . . . . Duelist 1 | . . . . . 1 . . . . . . . . . . . . . . Sentry 10 | . . . . . 7 . . . . 1 1 1 . . . . . . . Hunter 3 | . . . . . 3 . . . . . . . . . . . . . . Programmer 8 | . . . . . . . . . . 1 2 . 1 . . . 3 . 1 Behemoth 1 | . . . . . . . . . . 1 . . . . . . . . . Compactor 1 | . . . . . . . . . . . . . . . . . . 1 . Best Kill Streak 11 | . 3 11 . 3 4 1 1 3 . 2 2 8 1 1 . 4 7 1 6 Combat Bots Only 9 | . 3 9 . 2 4 1 . 3 . 2 2 5 1 . . 4 5 1 6 Max Kills in Single Turn 4 | . 1 4 . 2 2 1 1 2 . 1 1 2 1 1 . 2 4 1 3 Gunslinging 1 | . . . . . 1 . . . . . . . . . . . . . . Exploded 3 | . . 3 . 2 . . . 2 . 1 . 2 . . . 2 3 . 3 Melee 1 | . . . . . 1 1 . . . 1 1 1 1 . . . 1 . 1 Uniques/NPCs Destroyed . | . . . . . . . . . . . . . . . . . . . . Combat | -11 -10 -10 -10 -9 -8 -7 -7 -7 -7 -6 -6 -5 -5 -5 -5 -4 -4 -4 -4 -------- Run | Scr Mat Min Exi Min Mat Fac Low Low Zio Pro Fac Fac Upp Upp War Pro Fac Was Fac Damage Taken 10095 | . 389 350 . 92 2347 32 . 145 . 223 401 866 . 20 . 400 2301 . 2529 Core 2069 | . 84 28 . 30 299 . . 55 . . 91 134 . . . 182 691 . 475 Absorbed by Shields . | . . . . . . . . . . . . . . . . . . . . Redirected to Shielding 315 | . . . . . . . . . . . . 104 . . . 21 190 . . Regen/Repaired (Parts) 989 | . . . . . 20 54 . . . . 198 23 . . . . 532 . 162 Core Remaining (%) 72 | 100 . . . 43 45 . . . . 92 89 . . . . 68 . . . Volleys Fired 175 | . 31 19 . 3 68 2 . 3 . 1 . 12 . . . 6 10 9 11 Largest 2 | . 2 2 . 1 2 1 . 1 . 1 . 1 . . . 1 1 1 1 Hottest 132 | . 85 125 . 57 132 75 . 30 . 30 . 30 . . . 30 120 120 120 Shots Fired 287 | . 62 34 . 3 134 2 . 3 . 1 . 12 . . . 6 10 9 11 Gun 156 | . 42 20 . . 94 . . . . . . . . . . . . . . Cannon 88 | . 20 10 . 1 37 2 . . . . . . . . . . 4 9 5 Launcher 39 | . . 4 . 2 . . . 3 . 1 . 12 . . . 6 5 . 6 Special 4 | . . . . . 3 . . . . . . . . . . . 1 . . Kinetic 182 | . 48 15 . 1 118 . . . . . . . . . . . . . . Thermal 65 | . 14 15 . . 16 2 . . . . . . . . . . 4 9 5 Explosive 39 | . . 4 . 2 . . . 3 . 1 . 12 . . . 6 5 . 6 Electromagnetic . | . . . . . . . . . . . . . . . . . . . . Robot Hit Streak 21 | . 8 13 . . 21 . . . . . . 2 . . . 2 4 6 3 Robot Miss Streak 5 | . 2 1 . 3 5 . . . . . . 5 . . . 2 . 1 1 Penetration Max . | . . . . . . . . . . . . . . . . . . . . Secondary Targets 2 | . . . . . 2 . . . . . . . . . . . . . . Max Gunslinging Chain 1 | . . . . . 1 . . . . . . . . . . . . . . Shots Hit Robots 333 | . 39 24 2 . 150 4 2 . . 5 16 20 2 4 . 2 43 7 13 Core Hits 215 | . 17 18 . 3 62 3 . 3 . 9 5 20 1 1 . 9 38 2 24 Critical Kills 5 | . 1 . . . 3 . . . . . . . . . . . . 1 . Critical Parts Destroyed 7 | . 1 . . . 6 . . . . . . . . . . . . . . Critical Strikes 23 | . 3 . . . 14 . . . . 1 2 . . . . . 1 1 1 Burn 1 | . 1 . . . . . . . . . . . . . . . . . . Meltdown 1 | . . . . . . . . . . . . . . . . . . 1 . Destroy 11 | . 1 . . . 10 . . . . . . . . . . . . . . Smash 1 | . 1 . . . . . . . . . . . . . . . . . . Sever 6 | . . . . . 4 . . . . . 2 . . . . . . . . Impale 3 | . . . . . . . . . . 1 . . . . . . 1 . 1 Melee Attacks 498 | . 1 . 2 . 85 17 3 . 1 16 63 87 13 24 . 12 144 . 30 Impact 5 | . 1 . . . 4 . . . . . . . . . . . . . . Slashing 375 | . . . . . 81 17 3 . 1 12 63 87 13 24 . 12 62 . . Piercing 116 | . . . . . . . . . . 4 . . . . . . 82 . 30 Sneak Attacks 34 | . 1 . 2 . 18 1 2 . . . 1 5 . 1 . . 2 . 1 Combat Hostiles . | . . . . . . . . . . . . . . . . . . . . Follow-up Attacks 26 | . . . . . 11 . . . . . . 1 1 1 . . 11 . 1 Damage Inflicted 13871 | . 616 864 . 135 4376 217 209 223 . 257 903 1575 105 220 . 293 2173 347 1358 Guns 1828 | . 330 250 . . 1248 . . . . . . . . . . . . . . Cannons 1257 | . 238 110 . . 469 . . . . . . . . . . . . 347 93 Explosions 3083 | . . 504 . 135 62 . . 223 . 55 . 598 . . . 293 450 . 763 Melee 7683 | . 48 . . . 2577 217 209 . . 202 903 977 105 220 . . 1723 . 502 Ramming 8 | . . . . . 8 . . . . . . . . . . . . . . Kinetic 2050 | . 418 140 . . 1492 . . . . . . . . . . . . . . Thermal 1047 | . 150 220 . . 237 . . . . . . . . . . . . 347 93 Explosive 3083 | . . 504 . 135 62 . . 223 . 55 . 598 . . . 293 450 . 763 Electromagnetic . | . . . . . . . . . . . . . . . . . . . . Impact 198 | . 48 . . . 150 . . . . . . . . . . . . . . Slashing 6006 | . . . . . 2427 217 209 . . 104 903 977 105 220 . . 844 . . Piercing 1479 | . . . . . . . . . . 98 . . . . . . 879 . 502 Highest Corruption 4 | . . . . . . 3 . . . . 1 . . . . . 2 . 4 Average Corruption 1 | . . . . . . 2 . . . . 1 . . . . . 1 . 1 Corruption Purged 9 | . . . . . . 3 . . . . . . . . . . 6 . . Corruption Blocked . | . . . . . . . . . . . . . . . . . . . . Effects 21 | . . . . . . 10 . . . . 7 . . . . . 3 . 1 Message Errors 6 | . . . . . . 2 . . . . 2 . . . . . 1 . 1 Matter Fused 4 | . . . . . . 3 . . . . 1 . . . . . . . . Heat Flow Errors 5 | . . . . . . 2 . . . . 2 . . . . . 1 . . Energy Discharges 3 | . . . . . . . . . . . 2 . . . . . 1 . . Data Loss (major) 3 | . . . . . . 3 . . . . . . . . . . . . . Overload Shots . | . . . . . . . . . . . . . . . . . . . . Overflow Damage 1131 | . 48 46 . 4 136 . 164 7 . . 139 213 . 16 . . 218 . 140 Projectiles 23 | . . . . . . . . . . . . . . . . . . . 23 Explosions 86 | . . 46 . 4 . . . 7 . . . 15 . . . . . . 14 Melee 1022 | . 48 . . . 136 . 164 . . . 139 198 . 16 . . 218 . 103 Knockbacks 4 | . 3 . . . 1 . . . . . . . . . . . . . . Impact . | . . . . . . . . . . . . . . . . . . . . Kinetic 4 | . 3 . . . 1 . . . . . . . . . . . . . . Secondary . | . . . . . . . . . . . . . . . . . . . . Self-Inflicted Damage 437 | . . . . . 78 . . 67 . . . 143 . . . . 2 . 147 Shots 12 | . . . . . 1 . . 2 . . . 3 . . . . 1 . 5 Rammed . | . . . . . . . . . . . . . . . . . . . . Targets Rammed 1 | . . . . . 1 . . . . . . . . . . . . . . Kicked 1 | . . . . . 1 . . . . . . . . . . . . . . Crushed . | . . . . . . . . . . . . . . . . . . . . Highest Temperature 232 | . 9 42 . . 232 201 . . . . 232 19 . . . 36 203 49 221 Average Temperature 49 | . 5 13 . . 70 71 . . . . 52 5 . . . 14 52 21 50 Received Heat Transfer 2185 | . 147 126 . . 1107 18 . . . 36 93 99 . . . 57 291 . 211 Siege Activations . | . . . . . . . . . . . . . . . . . . . . Robots Corrupted . | . . . . . . . . . . . . . . . . . . . . Combat Hostiles . | . . . . . . . . . . . . . . . . . . . . Parts Fried 2 | . . . . . 2 . . . . . . . . . . . . . . Impact Corruptions 4 | . 2 . . . 2 . . . . . . . . . . . . . . Robots Melted 1 | . . . . . . . . . . . . . . . . . . 1 . Combat Hostiles 1 | . . . . . . . . . . . . . . . . . . 1 . Parts Melted 1 | . . 1 . . . . . . . . . . . . . . . . . Heat Transferred 1665 | . 444 481 . . 370 . . . . . . . . . . . . 296 74 Parts Sabotaged . | . . . . . . . . . . . . . . . . . . . . Parts Stolen . | . . . . . . . . . . . . . . . . . . . . Parts Stripped . | . . . . . . . . . . . . . . . . . . . . Power Chain Reactions . | . . . . . . . . . . . . . . . . . . . . Missiles Intercepted . | . . . . . . . . . . . . . . . . . . . . Alert | -11 -10 -10 -10 -9 -8 -7 -7 -7 -7 -6 -6 -5 -5 -5 -5 -4 -4 -4 -4 ------- Run | Scr Mat Min Exi Min Mat Fac Low Low Zio Pro Fac Fac Upp Upp War Pro Fac Was Fac Peak Influence 917 | . 249 316 . 195 580 504 . . . . 263 318 . . . . 293 150 917 Initial 263 | . . 43 . . 76 263 . . . . 43 73 . . . . 81 62 105 Average 228 | . 145 163 . 69 413 370 . . . . 132 109 . . . . 89 114 373 Maximum Alert Level 3 | . 1 1 . . 2 2 . . . . 1 1 . . . . 1 . 3 Low Security (%) 53 | 100 78 68 . 100 8 . . . . . 83 77 . . . . 92 100 13 Level 1 24 | . 21 31 . . 26 62 . . . . 16 22 . . . . 7 . 55 Level 2 21 | . . . . . 65 37 . . . . . . . . . . . . 18 Level 3 . | . . . . . . . . . . . . . . . . . . . 12 Level 4 . | . . . . . . . . . . . . . . . . . . . . Level 5 . | . . . . . . . . . . . . . . . . . . . . High Security . | . . . . . . . . . . . . . . . . . . . . Max Security . | . . . . . . . . . . . . . . . . . . . . Squads Dispatched 53 | . 3 . . . 7 3 . . . . 6 8 . . . . 15 . 11 Investigation 29 | . 2 . . . 4 2 . . . . 5 5 . . . . 9 . 2 Extermination 7 | . . . . . . 1 . . . . 1 . . . . . 4 . 1 Reinforcement 12 | . 1 . . . 2 . . . . . . 3 . . . . 2 . 4 Assault 1 | . . . . . 1 . . . . . . . . . . . . . . Garrison 4 | . . . . . . . . . . . . . . . . . . . 4 Intercept . | . . . . . . . . . . . . . . . . . . . . Searches Triggered . | . . . . . . . . . . . . . . . . . . . . Construction Impeded . | . . . . . . . . . . . . . . . . . . . . Haulers Reinforced 1 | . . . . . . . . . . . . . . . . . . . 1 Active Scanning Responses . | . . . . . . . . . . . . . . . . . . . . Cargo Convoy Interrupts . | . . . . . . . . . . . . . . . . . . . . Stealth | -11 -10 -10 -10 -9 -8 -7 -7 -7 -7 -6 -6 -5 -5 -5 -5 -4 -4 -4 -4 --------- Run | Scr Mat Min Exi Min Mat Fac Low Low Zio Pro Fac Fac Upp Upp War Pro Fac Was Fac Distress Signals 21 | . . . . . 5 . . . . . 3 1 . . . . 4 . 8 Communications Jammed . | . . . . . . . . . . . . . . . . . . . . Distress Signals . | . . . . . . . . . . . . . . . . . . . . Times Spotted 331 | . 23 14 . 6 65 6 2 3 . 4 25 36 1 5 . 20 58 5 58 Peak Tracking Total 18 | . 4 3 . 4 6 2 1 3 . 2 8 6 1 5 . 4 9 2 18 Tactical Retreats 54 | . . . . . 9 . 1 . . . 5 9 . 1 . 10 12 . 7 Traps | -11 -10 -10 -10 -9 -8 -7 -7 -7 -7 -6 -6 -5 -5 -5 -5 -4 -4 -4 -4 ------- Run | Scr Mat Min Exi Min Mat Fac Low Low Zio Pro Fac Fac Upp Upp War Pro Fac Was Fac Traps Triggered 12 | . 1 . . . 2 2 . . . . . 2 . . . . 4 . 1 Indirectly . | . . . . . . . . . . . . . . . . . . . . Trap Hack Attempts . | . . . . . . . . . . . . . . . . . . . . Triggered . | . . . . . . . . . . . . . . . . . . . . Disarmed . | . . . . . . . . . . . . . . . . . . . . Reprogrammed 14 | . . . . . 1 . . . . . . . . . . . 4 . 9 Reused 8 | . . 1 . . 3 . . . . . . . . 1 . . 1 . 2 Traps Extracted . | . . . . . . . . . . . . . . . . . . . . Installed 20 | . . 1 . . 3 . 7 . . . . . . 9 . . . . . Triggered 19 | . . 1 . . 3 1 3 . . . . . . 1 7 . 1 . 2 Most Traps Carried 4 | . . 4 3 3 3 . . . . . . . . . . . . . . Machines | -11 -10 -10 -10 -9 -8 -7 -7 -7 -7 -6 -6 -5 -5 -5 -5 -4 -4 -4 -4 ---------- Run | Scr Mat Min Exi Min Mat Fac Low Low Zio Pro Fac Fac Upp Upp War Pro Fac Was Fac Machines Disabled 15 | . . . . . 4 1 . . . . . 1 . . . . 3 . 6 Max in Single Turn 2 | . . . . . 1 1 . . . . . 1 . . . . 2 . 1 Garrison Access 12 | . . . . . . 1 . . . . 3 4 . . . . 3 . 1 Machines Sabotaged . | . . . . . . . . . . . . . . . . . . . . Garrisons Compromised 1 | . . . . . . 1 . . . . . . . . . . . . . Overloaded Fab Kills . | . . . . . . . . . . . . . . . . . . . . Hacking | -11 -10 -10 -10 -9 -8 -7 -7 -7 -7 -6 -6 -5 -5 -5 -5 -4 -4 -4 -4 --------- Run | Scr Mat Min Exi Min Mat Fac Low Low Zio Pro Fac Fac Upp Upp War Pro Fac Was Fac Machines Accessed 128 | . 7 . 1 . 14 8 1 . . . 21 29 1 1 3 1 29 . 12 Terminals 68 | . 6 . . . 9 4 . . . . 10 18 . 1 . 1 14 . 5 Fabricators 22 | . . . . . . 2 . . . . 5 5 . . . . 6 . 4 Repair Stations 9 | . . . . . 1 1 . . . . 2 1 . . . . 3 . 1 Recycling Units 5 | . 1 . . . 2 . . . . . 1 . . . . . 1 . . Scanalyzers 5 | . . . . . 2 . . . . . . 1 . . . . 1 . 1 Garrison Access 13 | . . . . . . 1 . . . . 3 4 . . . . 4 . 1 Total Hacks 480 | . 14 . 1 . 70 34 1 . . . 74 102 1 2 5 1 124 . 51 Successful 368 | . 7 . 1 . 51 19 1 . . . 57 78 1 2 5 1 102 . 43 Failed 109 | . 6 . . . 19 15 . . . . 16 24 . . . . 21 . 8 Catastrophic 5 | . . . . . 1 1 . . . . 1 1 . . . . . . 1 Database Lockouts 3 | . 1 . . . . . . . . . 1 . . . . . 1 . . Manual 184 | . 6 . . . 20 16 . . . . 28 48 . . . . 42 . 24 Terminals 281 | . 13 . . . 39 21 . . . . 42 68 . 2 . 1 73 . 22 Fabricators 98 | . . . . . . 8 . . . . 21 22 . . . . 25 . 22 Repair Stations 33 | . . . . . 3 4 . . . . 5 4 . . . . 15 . 2 Recycling Units 9 | . 1 . . . 3 . . . . . 3 . . . . . 2 . . Scanalyzers 36 | . . . . . 25 . . . . . . 3 . . . . 4 . 4 Garrison Access 15 | . . . . . . 1 . . . . 3 5 . . . . 5 . 1 Terminal Hacks 139 | . 5 . 1 . 13 5 1 . . . 20 34 1 2 5 1 42 . 9 Record 9 | . . . 1 . . . . . . . . . . 2 5 1 . . . Part Schematic 24 | . 1 . . . . 2 . . . . 3 11 . . . . 7 . . Robot Analysis 10 | . . . . . . . . . . . 2 5 . . . . 3 . . Prototype ID Bank 11 | . . . . . 2 1 . . . . 3 3 . . . . 2 . . Open Door 2 | . . . . . . . 1 . . . . . 1 . . . . . . Level Access Points 1 | . . . . . . . . . . . . . . . . . 1 . . Branch Access Points 6 | . 1 . . . 1 . . . . . 1 1 . . . . 1 . 1 Emergency Access Points 1 | . . . . . . . . . . . . . . . . . 1 . . Machine Index 2 | . . . . . . . . . . . 1 . . . . . 1 . . Terminal Index 5 | . . . . . . 1 . . . . 1 1 . . . . 1 . 1 Fabricator Index 2 | . . . . . . . . . . . . 1 . . . . 1 . . Garrison Index 1 | . . . . . . . . . . . . 1 . . . . . . . Alert Level 3 | . . . . . . . . . . . 1 1 . . . . 1 . . Unreport Threat 14 | . . . . . 2 . . . . . 1 6 . . . . 5 . . Locate Traps 10 | . 2 . . . 1 . . . . . 2 . . . . . 3 . 2 Reprogram Traps 4 | . . . . . 1 . . . . . . . . . . . 1 . 2 Surveillance Status 1 | . . . . . . . . . . . 1 . . . . . . . . Transport Status 2 | . . . . . 2 . . . . . . . . . . . . . . Recall Investigation 8 | . . . . . . 1 . . . . . 1 . . . . 6 . . Recall Extermination 2 | . . . . . . . . . . . . . . . . . 2 . . Recall Reinforcements 5 | . . . . . . . . . . . 1 1 . . . . 1 . 2 Hauler Manifests 7 | . 1 . . . 2 . . . . . 1 2 . . . . 1 . . Registered Prototypes 1 | . . . . . . . . . . . . . . . . . 1 . . Zone Layout 8 | . . . . . 2 . . . . . 2 . . . . . 3 . 1 Fabricator Hacks 60 | . . . . . . 5 . . . . 11 15 . . . . 16 . 13 Network Status 6 | . . . . . . 1 . . . . 1 1 . . . . 2 . 1 Load Schematic 34 | . . . . . . 2 . . . . 7 9 . . . . 9 . 7 Build 20 | . . . . . . 2 . . . . 3 5 . . . . 5 . 5 Repair Station Hacks 29 | . . . . . 3 4 . . . . 4 3 . . . . 13 . 2 Scan Component 16 | . . . . . 2 2 . . . . 2 2 . . . . 7 . 1 Repair 13 | . . . . . 1 2 . . . . 2 1 . . . . 6 . 1 Recycling Unit Hacks 2 | . . . . . 1 . . . . . 1 . . . . . . . . Report Inventory 2 | . . . . . 1 . . . . . 1 . . . . . . . . Scanalyzer 34 | . . . . . 23 . . . . . . 3 . . . . 4 . 4 Insert Component 14 | . . . . . 8 . . . . . . 2 . . . . 2 . 2 Analyze 20 | . . . . . 15 . . . . . . 1 . . . . 2 . 2 Garrison Access Hacks 11 | . . . . . . . . . . . 3 4 . . . . 3 . 1 Seal Access 11 | . . . . . . . . . . . 3 4 . . . . 3 . 1 Unauthorized Hacks 93 | . 2 . . . 11 5 . . . . 18 19 . . . . 24 . 14 Terminals 55 | . 1 . . . 9 3 . . . . 9 13 . . . . 14 . 6 Track 13 | . . . . . 1 1 . . . . 3 4 . . . . 4 . . Assimilate 13 | . . . . . 3 . . . . . 1 4 . . . . 3 . 2 Botnet 21 | . 1 . . . 4 2 . . . . 4 4 . . . . 4 . 2 Disrupt 2 | . . . . . . . . . . . . . . . . . 1 . 1 Operators 6 | . . . . . 1 . . . . . 1 1 . . . . 2 . 1 Fabricators 29 | . . . . . . 1 . . . . 7 6 . . . . 7 . 8 Report 1 | . . . . . . . . . . . 1 . . . . . . . . Prioritize 7 | . . . . . . . . . . . . 2 . . . . 2 . 3 Liberate 2 | . . . . . . . . . . . 1 . . . . . . . 1 Fabnet 3 | . . . . . . . . . . . 1 . . . . . . . 2 Recompile 16 | . . . . . . 1 . . . . 4 4 . . . . 5 . 2 Repair Stations . | . . . . . . . . . . . . . . . . . . . . Recycling Units 7 | . 1 . . . 2 . . . . . 2 . . . . . 2 . . Reject 2 | . . . . . . . . . . . 1 . . . . . 1 . . Recyclers 2 | . . . . . . . . . . . 1 . . . . . 1 . . Tunnel 3 | . 1 . . . 2 . . . . . . . . . . . . . . Scanalyzers . | . . . . . . . . . . . . . . . . . . . . Garrison Access 2 | . . . . . . 1 . . . . . . . . . . 1 . . Reprogram 1 | . . . . . . . . . . . . . . . . . 1 . . Jam 1 | . . . . . . 1 . . . . . . . . . . . . . Data Cores Recovered 2 | . . . . . . . . . . . . . . . . . 1 . 1 Used 1 | . . . . . . . . . . . . . . . . . 1 . . Hacking Detections 83 | . 5 . . . 12 6 . . . . 12 19 . . . 1 19 . 9 Full Trace Events 5 | . . . . . 1 . . . . . 1 1 . . . . 2 . . Feedback Events . | . . . . . . . . . . . . . . . . . . . . Feedback Blocked 1 | . . . . . . . . . . . . . . . . . 1 . . Robot Schematics Acquired . | . . . . . . . . . . . . . . . . . . . . Robots Built . | . . . . . . . . . . . . . . . . . . . . Authchips . | . . . . . . . . . . . . . . . . . . . . Time . | . . . . . . . . . . . . . . . . . . . . Total Robot Build Rating . | . . . . . . . . . . . . . . . . . . . . Part Schematics Acquired 36 | . 1 . . . 7 2 . . . . 3 12 . . . . 9 . 2 Parts Built 25 | . . . . . . 3 . . . . 4 5 . . . . 6 . 7 Authchips 16 | . . . . . . 1 . . . . 3 4 . . . . 3 . 5 Time 1081 | . . . . . . 105 . . . . 168 187 . . . . 363 . 258 Total Part Build Rating 186 | . . . . . . 17 . . . . 25 36 . . . . 50 . 58 Parts Repaired 13 | . . . . . 1 2 . . . . 2 1 . . . . 6 . 1 Time 456 | . . . . . 38 76 . . . . 66 19 . . . . 220 . 37 Parts Recycled . | . . . . . . . . . . . . . . . . . . . . Recycled Matter . | . . . . . . . . . . . . . . . . . . . . Retrieved Matter . | . . . . . . . . . . . . . . . . . . . . Retrieved Components . | . . . . . . . . . . . . . . . . . . . . Parts Scanalyzed 12 | . . . . . 7 . . . . . . 1 . . . . 2 . 2 Part Schematics Acquired 12 | . . . . . 7 . . . . . . 1 . . . . 2 . 2 Parts Damaged 1 | . . . . . . . . . . . . . . . . . 1 . . Bothacking | -11 -10 -10 -10 -9 -8 -7 -7 -7 -7 -6 -6 -5 -5 -5 -5 -4 -4 -4 -4 ------------ Run | Scr Mat Min Exi Min Mat Fac Low Low Zio Pro Fac Fac Upp Upp War Pro Fac Was Fac Used RIF Installer . | . . . . . . . . . . . . . . . . . . . . Robots Hacked 4 | . . . 2 . . . . . . . . 1 . . . . 1 . . Non-combat 2 | . . . 1 . . . . . . . . . . . . . 1 . . Combat 2 | . . . 1 . . . . . . . . 1 . . . . . . . Robot Hacks Applied 3 | . . . 2 . . . . . . . . . . . . . 1 . . parse_system 2 | . . . 2 . . . . . . . . . . . . . . . . find_chute 1 | . . . . . . . . . . . . . . . . . 1 . . Relay Couplers Released . | . . . . . . . . . . . . . . . . . . . . Fabnet Peak Effective % 3 | . . . . . . . . . . . . 3 3 3 3 1 1 1 1 Autooverrided 1 | . . . . . . . . . . . . 1 . . . . . . . Robots Rewired 4 | . . . . . . . . . . . . . . . 4 . . . . Allies Hacked 3 | . . . . . . . . . . . . . 2 . 1 . . . . Hacks Repelled . | . . . . . . . . . . . . . . . . . . . . Allies | -11 -10 -10 -10 -9 -8 -7 -7 -7 -7 -6 -6 -5 -5 -5 -5 -4 -4 -4 -4 -------- Run | Scr Mat Min Exi Min Mat Fac Low Low Zio Pro Fac Fac Upp Upp War Pro Fac Was Fac Total Allies 49 | . . . . 6 1 . . . 5 . 3 4 . . 4 . 4 19 3 Largest Group 19 | . . . . 5 5 . . . 5 5 2 2 2 1 4 . 2 19 18 Highest-Rated Group 702 | . . . . 90 90 . . . 99 99 74 52 52 26 198 . 112 702 677 Highest-Rated Ally 65 | . . . . 31 31 . . . 31 31 37 26 26 26 65 . 56 50 54 Total Orders 4 | . . . . . . . . . . . 2 2 . . . . . . . STAY 2 | . . . . . . . . . . . 1 1 . . . . . . . FOLLOW 2 | . . . . . . . . . . . 1 1 . . . . . . . Ally Attacks 302 | . . . . 14 31 . . . . 26 21 1 . . . . 11 78 120 Total Damage 7543 | . . . . 201 344 . . . . 391 508 18 . . . . 278 2695 3108 Kills 36 | . . . . 3 6 . . . . 1 6 . . . . . 1 6 13 Allies Corrupted . | . . . . . . . . . . . . . . . . . . . . Allies Melted 1 | . . . . . . . . . . . 1 . . . . . . . . Intel | -11 -10 -10 -10 -9 -8 -7 -7 -7 -7 -6 -6 -5 -5 -5 -5 -4 -4 -4 -4 ------- Run | Scr Mat Min Exi Min Mat Fac Low Low Zio Pro Fac Fac Upp Upp War Pro Fac Was Fac Robot Analysis Total 10 | . . . . . . . . . . . 2 5 . . . . 3 . . Derelict Logs Recovered 17 | . . 1 . 1 . . 1 3 1 2 . . 3 2 . 3 . . . Drone Launches . | . . . . . . . . . . . . . . . . . . . . Drone Recoveries . | . . . . . . . . . . . . . . . . . . . . Exploration | -11 -10 -10 -10 -9 -8 -7 -7 -7 -7 -6 -6 -5 -5 -5 -5 -4 -4 -4 -4 ------------- Run | Scr Mat Min Exi Min Mat Fac Low Low Zio Pro Fac Fac Upp Upp War Pro Fac Was Fac Turns Passed 18552 | 63 847 616 315 741 3436 998 620 878 752 1095 1206 1674 380 640 282 643 2338 171 857 Spaces Moved 21717 | 53 549 354 212 477 1697 906 646 931 777 1080 1942 3054 837 1236 623 1051 3598 241 1453 Core 6 | 1 . . . . . . . . . . 5 . . . . . . . . Treads 71 | . 45 . . . 26 . . . . . . . . . . . . . . Legs 958 | . . . . . 958 . . . . . . . . . . . . . . Wheels 6652 | 52 504 354 212 477 713 906 646 931 777 1080 . . . . . . . . . Hover 1967 | . . . . . . . . . . . . . . . . . 273 241 1453 Flight 12063 | . . . . . . . . . . . 1937 3054 837 1236 623 1051 3325 . . Fastest Speed 25 | 50 95 145 145 145 105 93 93 93 93 93 25 32 35 35 35 35 28 44 36 Average Speed 64 | 91 125 145 145 145 161 96 93 93 93 93 28 33 35 35 35 35 39 44 39 Slowest Speed 260 | 100 240 145 145 145 260 108 93 93 93 108 150 108 35 35 35 35 156 44 44 Overloaded Moves 24 | . . . . . . . . . . . . . . . . . 24 . . Propulsion Burnouts . | . . . . . . . . . . . . . . . . . . . . Robots Hopped 38 | . . . . . . . . . . . 5 8 1 2 . . 22 . . Cave-ins Triggered . | . . . . . . . . . . . . . . . . . . . . Exploration Rate (%) 70 | 4 89 54 53 84 83 22 75 93 84 95 47 65 81 92 81 92 75 94 40 Regions Visited 19 Branch Regions 11 Pre-discovered Areas 11 | . 1 . 1 . 2 . . . . 2 . . 2 1 1 1 . . . Known Exits Taken 13 | . 1 . . . 1 1 1 1 1 1 1 1 1 1 1 1 . . . Unknown Exits Taken 4 | 1 . 1 1 1 . . . . . . . . . . . . . . . Scrap Searched 24 | . . . . 2 . . 2 2 4 5 . . 1 4 . 4 . . . Spaces Dug 286 | . . 10 . . 8 10 1 6 . 9 41 54 10 14 . 11 75 . 37 Terrain Destroyed 542 | . 3 48 . 19 96 10 1 12 . 13 41 86 10 14 . 42 84 1 62 Melee 243 | . . . . . 6 10 1 . . 9 41 54 10 14 . 11 71 . 16 Projectile 33 | . 3 6 . . 16 . . . . . . . . . . . 4 1 3 AOE 266 | . . 42 . 19 74 . . 12 . 4 . 32 . . . 31 9 . 43 Terrain Rammed . | . . . . . . . . . . . . . . . . . . . . Walls Destroyed . | . . . . . . . . . . . . . . . . . . . . Machines Disabled . | . . . . . . . . . . . . . . . . . . . . Actions | -11 -10 -10 -10 -9 -8 -7 -7 -7 -7 -6 -6 -5 -5 -5 -5 -4 -4 -4 -4 --------- Run | Scr Mat Min Exi Min Mat Fac Low Low Zio Pro Fac Fac Upp Upp War Pro Fac Was Fac Total 25172 | 64 645 420 219 526 2182 1000 660 939 805 1135 2456 3549 905 1409 687 1298 4305 295 1673 Wait 2151 | . 33 20 . 35 180 29 1 . 19 18 388 341 53 145 40 224 464 40 121 Move 21628 | 52 548 353 211 476 1696 905 645 930 776 1079 1932 3037 834 1231 622 1050 3558 240 1453 Hop 33 | . . . . . . . . . . . 4 8 1 2 . . 18 . . Pick Up 157 | 5 11 9 1 4 29 14 2 . 2 2 14 8 . 2 2 . 39 3 10 Fast Attach 85 | 6 4 . . . 27 3 . 1 2 3 4 10 . . 1 . 13 1 10 Attach 77 | . . 3 . . 6 5 . 1 . 2 11 15 2 . . . 22 . 10 Detach 28 | . 2 1 . . 2 3 . 1 . 2 4 7 1 . . . 3 . 2 Swap 198 | 1 8 10 3 3 51 9 . 2 1 5 20 24 1 . . 6 39 1 14 Drop 150 | . 7 4 2 5 49 13 2 1 4 7 16 8 . . 3 . 17 1 11 Fire 175 | . 31 19 . 3 68 2 . 3 . 1 . 12 . . . 6 10 9 11 Melee 445 | . 1 . 2 . 70 17 3 . 1 16 63 79 11 20 . 12 122 . 28 Ram . | . . . . . . . . . . . . . . . . . . . . Kick 1 | . . . . . 1 . . . . . . . . . . . . . . Crush . | . . . . . . . . . . . . . . . . . . . . Escape Stasis 3 | . . . . . . . . . . . . . . . . . . . 3 Rewire 21 | . . . . . . . . . . . . . 2 . 19 . . . . Trap 20 | . . 1 . . 3 . 7 . . . . . . 9 . . . . . Miscellaneous . | . . . . . . . . . . . . . . . . . . . . Route ------- -11/Scrapyard -10/Materials (discovered 5 exits: [*Mat x3] / *Min x2) -10/Mines (discovered 2 exits: [*Mat] / *Exi) -10/Exiles -9/Mines (discovered 2 exits: *Mat x2) -8/Materials (discovered 2 exits: *Fac x2) -7/Factory (discovered 2 exits: *Fac / *Low) -7/Lower Caves -7/Lower Caves (discovered 2 exits: *Fac / *Zio) -7/Zion -6/Proximity Caves -6/Factory (discovered 5 exits: *Fac / *Low x2 / Ext x2) -5/Factory (discovered 4 exits: *Fac x2 / *Upp x2) -5/Upper Caves -5/Upper Caves (discovered 2 exits: Fac / *War) -5/Warlord -4/Proximity Caves -4/Factory (discovered 7 exits: *Res x4 / *Upp x2 / Arm) -4/Waste -4/Factory (discovered 3 exits: *Upp x2 / Arm) History --------- Turn | Location | Event 23 | -11/Scrapyard | Discovered new exit (range 15) 64 | -11/Scrapyard | Entered Materials 70 | -10/Materials | Discovered new exit (range 15) 139 | -10/Materials | Discovered new exit (range 15) 194 | -10/Materials | Identified exit to Mines 217 | -10/Materials | Discovered new exit (range 5) 293 | -10/Materials | Discovered new exit (range 10) 317 | -10/Materials | Build established: Mutant 679 | -10/Materials | Central database locked down 805 | -10/Materials | Discovered new exit (range 14) 911 | -10/Materials | Entered Mines 971 | -10/Mines | Learned Materials stockpile data 1056 | -10/Mines | Received a Rocket Launcher from a helpful Derelict 1084 | -10/Mines | A weapon hastily lodged in a ceiling crevice suddenly fell to the ground 1167 | -10/Mines | Found a hidden stash of uninstalled traps 1366 | -10/Mines | Destroyed 9 combat bots 1383 | -10/Mines | Discovered new exit (range 10) 1444 | -10/Mines | Deemed a non-threat by the Exiles lab entrance 1444 | -10/Mines | Discovered new exit (range 5) 1527 | -10/Mines | Entered Exiles 1567 | -10/Exiles | Met 8R-AWN 1587 | -10/Exiles | Met EX-HEX 1751 | -10/Exiles | Met EX-DEC 1780 | -10/Exiles | Learned location of Zion (-7) 1828 | -10/Exiles | Discovered new exit (range 10) 1842 | -10/Exiles | Entered Mines 2096 | -9/Mines | Found a damaged Exp. Sensor Array with a note attached 2099 | -9/Mines | Found Prototype Device 2122 | -9/Mines | Discovered new exit (range 4) 2126 | -9/Mines | Received a Mining Laser from a helpful Derelict 2185 | -9/Mines | Learned Materials terminal intel 2313 | -9/Mines | Core integrity fell below 50% 2433 | -9/Mines | Discovered new exit (range 15) 2541 | -9/Mines | Assisted by bots powering up and referring to "LRC-V3" 2583 | -9/Mines | Entered Materials 2583 | -8/Materials | Accompanied by 5 allies 2583 | -8/Materials | Evolved 4 slots: Propulsion x2, Utility x2 2585 | -8/Materials | Loaded intel: 11 terminal locations 2588 | -8/Materials | Led the pair of lost Derelicts to an unsafe place 3333 | -8/Materials | Identified Exp. Sensor Array 3391 | -8/Materials | Discovered new exit (range 11) 3419 | -8/Materials | Build established: Scavenger-Mutant 3576 | -8/Materials | Identified exit to Factory 5278 | -8/Materials | Build established: Hacker-Mutant 5484 | -8/Materials | Repaired Katana 5783 | -8/Materials | First assault squad dispatched 5881 | -8/Materials | Core integrity fell below 50% 5885 | -8/Materials | Discovered exit to Factory (range 10) 6019 | -8/Materials | Entered Factory 6019 | -7/Factory | Evolved 2 slots: Utility x2 6386 | -7/Factory | Discovered new exit (range 19) 6444 | -7/Factory | Identified exit to Factory 6709 | -7/Factory | Repaired Imp. Sensor Array 6748 | -7/Factory | Repaired Lgt. Nuclear Core? 6786 | -7/Factory | Discovered new exit (range 11) 6794 | -7/Factory | Identified exit to Lower Caves 6935 | -7/Factory | Fabricated Imp. Cloaking Device (x1) 6985 | -7/Factory | Fabricated Nuclear Pulse Thruster? 7017 | -7/Factory | Entered Lower Caves 7018 | -7/Lower Caves | Encountered a Warlord checkpoint 7236 | -7/Lower Caves | Build established: Hacker-Assassin 7436 | -7/Lower Caves | Discovered new exit (range 13) 7571 | -7/Lower Caves | Learned 4 Factory zone layouts 7626 | -7/Lower Caves | Identified exit to Lower Caves 7637 | -7/Lower Caves | Entered another Lower Caves area 7694 | -7/Lower Caves | Discovered exit to Factory (range 14) 8123 | -7/Lower Caves | Discovered new exit (range 11) 8135 | -7/Lower Caves | Identified exit to Zion 8162 | -7/Lower Caves | Learned Factory garrison access intel 8217 | -7/Lower Caves | Learned 8 Factory zone layouts 8365 | -7/Lower Caves | Encountered a Warlord checkpoint 8515 | -7/Lower Caves | Entered Zion 8535 | -7/Zion | Found CR-A16's Pointy Stick 8752 | -7/Zion | Gained Derelict followers 8963 | -7/Zion | Learned Factory emergency access door positions 9144 | -7/Zion | Discovered new exit (range 20) 9245 | -7/Zion | Identified exit to Proximity Caves 9267 | -7/Zion | Entered Proximity Caves 9267 | -6/Proximity Caves | Accompanied by 5 allies 9731 | -6/Proximity Caves | Spotted B-75 Beast 9745 | -6/Proximity Caves | Revealed the true nature of CR-A16's Pointy Stick 9745 | -6/Proximity Caves | Destroyed B-75 Beast 10320 | -6/Proximity Caves | Attracted the attention of an 0b10 checkpoint 10329 | -6/Proximity Caves | Discovered exit to Factory (range 9) 10362 | -6/Proximity Caves | Entered Factory 10362 | -6/Factory | Accompanied by 2 allies 10362 | -6/Factory | Evolved 2 slots: Propulsion x1, Utility x1 10363 | -6/Factory | Identified exit to Lower Caves 10363 | -6/Factory | Identified exit to Extension 10364 | -6/Factory | Identified exit to Factory 10366 | -6/Factory | Loaded intel: 4 garrison access locations 10432 | -6/Factory | Spotted B-75 Beast 10587 | -6/Factory | Repaired Lyr. Light Armor Plating 10630 | -6/Factory | Repaired Greatsword 10678 | -6/Factory | Central database locked down 11163 | -6/Factory | Fabricated Exp. Sensor Array? 11308 | -6/Factory | Fabricated Imp. Hacking Suite? 11515 | -6/Factory | Fabricated Nuclear Pulse Array? 11568 | -6/Factory | Entered another Factory area 11568 | -5/Factory | Accompanied by 1 ally 11568 | -5/Factory | Evolved 2 slots: Power x1, Utility x1 11804 | -5/Factory | Build established: Hacker-Mutant 11959 | -5/Factory | Discovered new exit (range 16) 12009 | -5/Factory | Lost 3 parts (1n1u1w) 12053 | -5/Factory | Fabricated Adv. Hacking Suite? 12181 | -5/Factory | Build established: Hacker-Sprinter 12248 | -5/Factory | Identified exit to Factory 12267 | -5/Factory | Fabricated Adv. Hacking Suite (x1) 12397 | -5/Factory | Repaired Adv. Weight Redist. System 12439 | -5/Factory | Discovered new exit (range 14) 12444 | -5/Factory | Identified exit to Upper Caves 12479 | -5/Factory | Spotted B-75 Beast 12483 | -5/Factory | Fabricated Exp. Sensor Array? 12541 | -5/Factory | Discovered exit to Upper Caves (range 7) 12711 | -5/Factory | Discovered exit to Factory (range 12) 12820 | -5/Factory | Fabricated Impulse Thruster Array (x1) 12865 | -5/Factory | Fabricated Impulse Thruster Array? 13120 | -5/Factory | Build established: Hacker-Mutant 13242 | -5/Factory | Entered Upper Caves 13242 | -5/Upper Caves | Accompanied by 2 allies 13562 | -5/Upper Caves | Discovered new exit (range 15) 13567 | -5/Upper Caves | Identified exit to Upper Caves 13589 | -5/Upper Caves | Learned Factory stockpile data 13622 | -5/Upper Caves | Entered another Upper Caves area 13622 | -5/Upper Caves | Accompanied by 1 ally 13755 | -5/Upper Caves | Attracted the attention of an 0b10 checkpoint 14227 | -5/Upper Caves | Discovered new exit (range 15) 14261 | -5/Upper Caves | Identified exit to Warlord 14262 | -5/Upper Caves | Entered Warlord 14367 | -5/Warlord | Learned 4 Armory zone layouts 14367 | -5/Warlord | Learned 4 Command zone layouts 14367 | -5/Warlord | Learned Research terminal intel 14367 | -5/Warlord | Learned Research scanalyzer intel 14492 | -5/Warlord | Discovered new exit (range 14) 14498 | -5/Warlord | Warlord's base attacked by MAIN.C 14504 | -5/Warlord | Identified exit to Proximity Caves 14544 | -5/Warlord | Entered Proximity Caves 14582 | -4/Proximity Caves | Learned location of Testing (-3) 14592 | -4/Proximity Caves | Learned Research terminal intel 14621 | -4/Proximity Caves | Spotted B-86 Titan 14649 | -4/Proximity Caves | Learned Research stockpile data 14784 | -4/Proximity Caves | Discovered exit to Factory (range 9) 14995 | -4/Proximity Caves | Received a Behemoth hack from an annoying Tinkerer 15187 | -4/Proximity Caves | Entered Factory 15187 | -4/Factory | Evolved 2 slots: Propulsion x1, Utility x1 15333 | -4/Factory | Discovered new exit (range 16) 15358 | -4/Factory | Identified exit to Research 15481 | -4/Factory | Build established: Wizard-Mutant 15526 | -4/Factory | Discovered new exit (range 6) 15528 | -4/Factory | Identified exit to Upper Caves 15580 | -4/Factory | Repaired Mni. Grenade Launcher? 15609 | -4/Factory | Fabricated Cmb. Linear Gravjet? 15640 | -4/Factory | Fabricated Nanosword? 15754 | -4/Factory | Repaired Lyr. Light Armor Plating? 15811 | -4/Factory | Identified exit to Armory 15869 | -4/Factory | Repaired Mic. Fission Core? 15876 | -4/Factory | Central database locked down 15988 | -4/Factory | Repaired Exp. Utility Shielding? 16401 | -4/Factory | Fabricated Enh. Nova Cannon? 16608 | -4/Factory | Fabricated Exp. Hacking Suite? 16680 | -4/Factory | Spotted B-86 Titan 16924 | -4/Factory | Fabricated Impulse Thruster Array? 17032 | -4/Factory | Lost 4 parts (1p3u) 17151 | -4/Factory | Lost 4 parts (2p2n) 17177 | -4/Factory | Core integrity fell below 50% 17242 | -4/Factory | Lost 4 parts (2n1u1w) 17296 | -4/Factory | Build established: Hacker-Mutant 17441 | -4/Factory | Repaired Broken Imp. System Restoration Module 17486 | -4/Factory | Repaired Lyr. Light Armor Plating? 17525 | -4/Factory | Sucked down chute 17525 | -4/Factory | Entered Waste 17530 | -4/Waste | Found Prototype Device 17544 | -4/Waste | Warlord forces began an assault 17574 | -4/Waste | Spotted C-40 Crusher 17580 | -4/Waste | Allies destroyed C-40 Crusher 17590 | -4/Waste | Spotted C-40 Crusher 17592 | -4/Waste | Allies destroyed C-40 Crusher 17595 | -4/Waste | Spotted C-40 Crusher 17595 | -4/Waste | Spotted C-40 Crusher 17598 | -4/Waste | Destroyed C-40 Crusher 17598 | -4/Waste | Allies destroyed C-40 Crusher 17603 | -4/Waste | Spotted C-40 Crusher 17606 | -4/Waste | Spotted C-40 Crusher 17609 | -4/Waste | Allies destroyed C-40 Crusher 17615 | -4/Waste | Allies destroyed C-40 Crusher 17636 | -4/Waste | Discovered new exit (range 16) 17655 | -4/Waste | Identified exit to Factory 17696 | -4/Waste | Entered Factory 17696 | -4/Factory | Accompanied by 18 allies 17724 | -4/Factory | Identified Thermal Barrier 17805 | -4/Factory | Garrison activated, responded to threat 17961 | -4/Factory | Fabricated Cmb. Linear Gravjet? 17989 | -4/Factory | Fabricated Exp. Hacking Suite? 18067 | -4/Factory | Fabricated Exp. Hacking Suite (x1) 18100 | -4/Factory | Garrison activated, responded to threat 18136 | -4/Factory | Fabricated Nanosword? 18194 | -4/Factory | Fabricated Cmb. Linear Gravjet (x2) 18395 | -4/Factory | Repaired Cmb. Linear Gravjet? 18457 | -4/Factory | Spotted B-86 Titan 18466 | -4/Factory | Core integrity fell below 20% 18522 | -4/Factory | Lost 9 parts (3p1n5u) 18553 | -4/Factory | Destroyed by G-73 Enforcer with Phase Gun Last Messages --------------- Active: 1% Next depth: 6% 18485_ Subcomponent Replicator disabled. 18487_ Mic. Fission Core destroyed. 18487_ Acquired Imp. Fusion Compressor. 18490_ Subcomponent Replicator disabled. 18491_ Exp. Hacking Suite destroyed. 18494_ S-27 Virus destroyed. 18501_ P-70 Sage: "Is this hope?" 18501_ R-10 Processor collects Imp. Concussive RPG. 18524_ T-07 Excavator is excavating. 18527_ PO7L>GAOIA4#QS,8P0O1,S57IDEHPFALVRR47H2 18528_ T-07 Excavator is excavating. 18534_ Acquired Hrd. Medium Armor Plating. 18540_ P-70 Sage IFF system glitched. 18543_ W-44 Eye sends out distress signal. 18546_ C-30 ARC bursts open, deploying its payload. 18546_ G-73 Enforcer unfolds itself. 18546_ G-67 Veteran unfolds itself. 18553_ K-01 Serf collects debris. Map ----- +----------------------------------------------------+ | ?????????????????????????????????????????????????? | | ?????????????????????????????????????????????????? | | ?????????????????????????????????????????????????? | | ???????????????????????????????????o?????????????? | | ?????????????????????????????????????????????????? | | ?????????????????????????????????????????????????? | | ?????????????????????????????????????????????????? | | ?????????????????????????????????????????????????? | | ?????????????????????????????????????????? ??????? | | ?????????????????????????????????????????? #???? | | ?????????????????????????????????????????? #???? | | ????????????????????????????????????????? #???? | | ????????????????????????????????????????? #???? | | ????????????????????????????????????????? #???? | | ?????????????????##########????????????? #???? | | ?????????????????# #????????????? o #???? | | ?????????????????# #????####????? #???? | | ?????????????????# #????#""###### #???? | | ?????????????????# #?????# #???? | | ?????????????????# #?????# +???? | | ?????????????????# = #?????# #???? | | ????????????###??# #?????# #???? | | ????????????# ##? #?????# #???? | | ?????????????# #??? ???????# ########???? | | ############### ######+########## #??????????? | | @ k #??????????? | | w g #??????????? | | g #??????????? | | g g gg #??????????? | | k pgg glg g#??????????? | | ############/#####;# T# k#??????????? | | ???????????# ##### #??????????? | | ???????????# """ """ #???# #??????????? | | ???????????# """ """ #???# #??????????? | | ???????????# """ """ #???# ############ | | ???????????# #???# # =%= | | ???????????# #???# # """""[ | | ???????????#= #???######## # """"" | | ???????????# #????????? # # "" | | ???????????###########????????? # # | | ????????????????????????????????+ # """"" | | ????????????????????????????????# / """" | | ????????????????????????????????# # """ "" | | ????????????????????????????????# # "" | | ?????????????????? ?????????????## %## F | | ### ?????????? ???? ?????# # = = " | | ?????????? ???? ??## % # | | ???????"?? ??# # %# #######"### | | ???????" ? ? # = ### | | ??????#??" " " # # * ## | +----------------------------------------------------+ Best States ------------- Heat Dissipation 89 Coolant Potential 100 Energy Generation 41 Energy Capacity 720 Matter Stores 300 Matter Capacity 300 Sight Range 20 Robot Scan Range 20 Terrain Scan Density 10 Cloak Strength 3 Additional Mass Support 16 Armor Coverage 450 Propulsion Shielding 66 Utility Shielding 90 Evasion (%) 74 Targeting Accuracy 6 Recoil Reduction 2 Offensive Hacking 52 Defensive Hacking 14 Authchip Count 3 Item Schematics ----------------- Hcp. Storage Unit | -10/Materials | Hacked Exp. Sensor Array | -8/Materials | Scanalyzed Imp. Sensor Array | -8/Materials | Scanalyzed Lrg. Storage Unit | -8/Materials | Scanalyzed Structural Scanner | -8/Materials | Scanalyzed Hacking Suite | -8/Materials | Scanalyzed Mni. Grenade Launcher | -8/Materials | Scanalyzed Imp. VTOL Module | -8/Materials | Scanalyzed Nuclear Pulse Thruster | -7/Factory | Hacked Linear Gravjet | -7/Factory | Hacked Imp. Hacking Suite | -6/Factory | Hacked Nuclear Pulse Array | -6/Factory | Hacked Hvy. Disruptor Cannon | -6/Factory | Hacked Adv. Hacking Suite | -5/Factory | Hacked Adv. System Shield | -5/Factory | Hacked Exp. Propulsion Shielding | -5/Factory | Hacked Imp. Armor Integrity Analyzer | -5/Factory | Hacked Cmb. Gravmag System | -5/Factory | Hacked Centrium Wheel | -5/Factory | Hacked Cmb. Antigrav System | -5/Factory | Hacked Impulse Thruster Array | -5/Factory | Hacked Lrn. Terrain Scanner | -5/Factory | Hacked Exp. Weapon Shielding | -5/Factory | Hacked Lyr. Light Armor Plating | -5/Factory | Scanalyzed Enh. Force Lance | -5/Factory | Hacked Adv. Micro-nuke Launcher | -4/Factory | Hacked Exp. Hacking Suite | -4/Factory | Hacked Nanosword | -4/Factory | Hacked Imp. Phase Shifter | -4/Factory | Hacked Cmb. Linear Gravjet | -4/Factory | Hacked Enh. Nova Cannon | -4/Factory | Hacked Exp. Utility Shielding | -4/Factory | Scanalyzed Imp. System Restoration Module | -4/Factory | Scanalyzed Biometal Heavy Treads | -4/Factory | Hacked Thermal Barrier | -4/Factory | Scanalyzed Plasma Lance | -4/Factory | Scanalyzed Robot Schematics ------------------ None Fabricated ------------ Imp. Cloaking Device | x1 | -7/Factory | Preloaded Nuclear Pulse Thruster | x2 | -7/Factory | Authchip Exp. Sensor Array | x1 | -6/Factory | Authchip Imp. Hacking Suite | x1 | -6/Factory | Authchip Nuclear Pulse Array | x2 | -6/Factory | Authchip Adv. Hacking Suite | x1 | -5/Factory | Authchip Adv. Hacking Suite | x1 | -5/Factory | Authchip Exp. Sensor Array | x1 | -5/Factory | Authchip Impulse Thruster Array | x1 | -5/Factory | Authchip Impulse Thruster Array | x1 | -5/Factory Cmb. Linear Gravjet | x2 | -4/Factory | Authchip Nanosword | x1 | -4/Factory Enh. Nova Cannon | x1 | -4/Factory | Preloaded Exp. Hacking Suite | x1 | -4/Factory | Authchip Impulse Thruster Array | x1 | -4/Factory | Authchip Cmb. Linear Gravjet | x2 | -4/Factory | Authchip Exp. Hacking Suite | x1 | -4/Factory | Authchip Exp. Hacking Suite | x1 | -4/Factory | Authchip Nanosword | x1 | -4/Factory | Authchip Cmb. Linear Gravjet | x2 | -4/Factory | Authchip Alien Tech Used ----------------- None Achievements -------------- None Challenges ------------ None Game ------ Seed AlloyReactionPenetrator Manual? 0 Play Time 04:33:40 Cumulative 268.5 hours Start 2022.06.01 @ 15:06:11 End 2022.06.01 @ 19:40:04 Sessions 1 Manual Loads 0 Difficulty Rogue Special Mode None Game No. 79 Rogue 79 Adventurer 0 Explorer 0 Win Type - Total 14 Types 12/0/2/0/0/0/0/0/0 Lore% 85 Gallery% 86 Achievement% 72 Wizard Run 0 Options --------- ASCII 0 Keyboard 0 Movement Numpad Keybinds 0 Fullscreen 1 Font 14/SmallcapsGlow Map View 84x54 Tactical HUD 1 Map Filters NONE Filters NONE Steam 1 RUN: a637ee54-e14b-4155-9fba-09ce8b45bd7f